bitfinex-derivatives/quotes_BTCF0:USTF0_20250114
["timestamp","ask_amount","ask_price","bid_price","bid_amount"]
[1736869044594,0.051693,96757.0,96756.0,0.3608]
[1736869044996,0.051693,96757.0,96743.0,0.0484]
[1736869044997,0.001,96757.0,96743.0,0.0484]
[1736869045293,0.051695,96754.0,96743.0,0.0484]
[1736869045595,0.413495,96754.0,96742.0,0.3608]
[1736869045795,0.051715,96719.0,96710.0,0.3608]
[1736869045991,0.051718,96711.0,96710.0,0.3608]
[1736869046594,0.051723,96701.0,96700.0,0.34634963]
[1736869046995,0.052723,96701.0,96700.0,0.34634963]
[1736869047294,0.051738,96674.0,96672.0,0.06189142]
[1736869047493,0.051738,96674.0,96670.0,0.3608]
[1736869047703,0.051741,96668.0,96666.0,0.051742]
[1736869047896,0.042741,96668.0,96666.0,0.051742]
[1736869048098,0.3608,96674.0,96658.0,0.3608]
[1736869048295,0.051745,96661.0,96658.0,0.3608]
[1736869048502,0.051746,96660.0,96658.0,0.3608]
[1736869049398,0.412538,96674.0,96663.0,0.051743]
[1736869049596,0.3608,96674.0,96663.0,0.051743]
[1736869049790,0.3608,96674.0,96658.0,0.3608]
[1736869049994,0.051739,96671.0,96670.0,0.3608]
[1736869050203,0.036739,96671.0,96670.0,0.3608]
[1736869050402,0.051741,96668.0,96665.0,0.051742]
[1736869051098,0.001,96674.0,96672.0,0.051739]
[1736869051399,0.051741,96669.0,96667.0,0.3608]
[1736869052106,0.001,96668.0,96667.0,0.3608]
[1736869053497,0.051741,96669.0,96667.0,0.3648]
[1736869053899,0.051741,96669.0,96667.0,0.3658]
[1736869054301,0.051741,96669.0,96667.0,0.417541]
[1736869054599,0.051741,96669.0,96667.0,0.3618]
[1736869054796,0.051736,96677.0,96667.0,0.3618]
[1736869055700,0.051736,96677.0,96671.0,0.051739]
[1736869055899,0.051736,96677.0,96676.0,0.3608]
[1736869056101,0.01049018,96682.0,96676.0,0.3608]
[1736869056293,0.3618,96677.0,96667.0,0.3618]
[1736869056499,0.051741,96669.0,96667.0,0.3618]
[1736869056699,0.3608,96668.0,96641.0,0.3608]
[1736869056894,0.051751,96650.0,96641.0,0.3608]
[1736869057100,0.412551,96650.0,96637.0,0.01041923]
[1736869057298,0.05176,96633.0,96632.0,0.3608]
[1736869058105,0.051756,96641.0,96632.0,0.3608]
[1736869058299,0.051756,96640.0,96632.0,0.3608]
[1736869058504,0.051756,96640.0,96632.0,0.3638]
[1736869058808,0.051756,96640.0,96635.0,0.051758]
[1736869059312,0.051756,96640.0,96638.0,0.051757]
[1736869059512,0.051751,96649.0,96643.0,0.051754]
[1736869059717,0.051748,96655.0,96653.0,0.051749]
[1736869059919,0.051748,96655.0,96646.0,0.3608]
[1736869060112,0.001,96659.0,96647.0,0.051752]
[1736869060307,0.051752,96647.0,96646.0,0.3608]
[1736869061713,0.051752,96647.0,96646.0,0.3618]
[1736869061909,0.06222328,96647.0,96646.0,0.3618]
[1736869062822,0.06222328,96647.0,96646.0,0.003]
[1736869063013,0.06322328,96647.0,96646.0,0.003]
[1736869063214,0.06222328,96647.0,96646.0,0.003]
[1736869063614,0.36156,96653.0,96646.0,0.003]
[1736869063916,0.051738,96673.0,96647.0,0.051752]
[1736869063917,0.01018317,96658.0,96647.0,0.051752]
[1736869064120,0.051746,96658.0,96657.0,0.051746]
[1736869064318,0.051746,96658.0,96646.0,0.003]
[1736869064319,0.051745,96660.0,96658.0,0.051746]
[1736869064518,0.06226861,96660.0,96658.0,0.051746]
[1736869065219,0.16914845,96670.0,96652.0,0.3608]
[1736869065415,0.05174,96670.0,96668.0,0.051741]
[1736869065614,0.051738,96675.0,96670.0,0.05174]
[1736869065820,0.051736,96677.0,96669.0,0.3608]
[1736869066123,0.051736,96677.0,96676.0,0.051737]
[1736869066419,0.051733,96682.0,96679.0,0.051735]
[1736869066720,0.052491,96687.0,96686.0,0.051731]
[1736869066920,0.00155224,96690.0,96689.0,0.05173]
[1736869067125,0.00155224,96690.0,96689.0,0.36105362]
[1736869067316,0.00155224,96690.0,96689.0,0.3608]
[1736869067520,0.00155224,96690.0,96689.0,0.41253]
[1736869067828,0.3608,96706.0,96705.0,0.051721]
[1736869068023,0.16914845,96720.0,96699.0,0.3608]
[1736869068327,0.051718,96711.0,96707.0,0.3608]
[1736869068521,0.001,96719.0,96707.0,0.3608]
[1736869068715,0.051719,96708.0,96707.0,0.3608]
[1736869069023,0.3608,96718.0,96699.0,0.3608]
[1736869069322,0.051724,96700.0,96699.0,0.3608]
[1736869071126,0.052724,96700.0,96699.0,0.3608]
[1736869071718,0.001,96700.0,96699.0,0.3608]
[1736869071930,0.051724,96701.0,96699.0,0.3608]
[1736869072322,0.001,96700.0,96699.0,0.3608]
[1736869072624,0.002,96700.0,96699.0,0.3608]
[1736869073128,0.001,96700.0,96699.0,0.3608]
[1736869073328,0.001,96701.0,96700.0,0.051724]
[1736869073730,0.001,96700.0,96699.0,0.412524]
[1736869073925,0.001,96700.0,96699.0,0.3608]
[1736869074121,0.002,96700.0,96699.0,0.3608]
[1736869074325,0.001,96700.0,96699.0,0.3608]
[1736869077236,0.01047338,96713.0,96699.0,0.411]
[1736869077530,0.16914845,96730.0,96708.0,0.3608]
[1736869077739,0.05326166,96726.0,96721.0,0.051712]
[1736869077936,0.05171,96725.0,96721.0,0.051712]
[1736869078132,0.01170929,96726.0,96721.0,0.051712]
[1736869078330,0.01170929,96726.0,96725.0,0.3608]
[1736869079331,0.01170929,96726.0,96725.0,0.41251]
[1736869079527,0.02070929,96726.0,96725.0,0.41251]
[1736869079725,0.02170929,96726.0,96725.0,0.3608]
[1736869080241,0.02570929,96726.0,96725.0,0.3608]
[1736869080834,0.38650929,96726.0,96715.0,0.3608]
[1736869081030,0.051715,96716.0,96715.0,0.3608]
[1736869081434,0.052715,96716.0,96715.0,0.3608]
[1736869081628,0.38550929,96726.0,96720.0,0.051712]
[1736869081832,0.38550929,96726.0,96724.0,0.051711]
[1736869082031,0.43721929,96726.0,96724.0,0.051711]
[1736869082233,0.43721929,96726.0,96715.0,0.3608]
[1736869082234,0.051715,96718.0,96717.0,0.051714]
[1736869082534,0.001,96725.0,96712.0,0.051717]
[1736869082734,0.001,96725.0,96710.0,0.051718]
[1736869082935,0.001,96725.0,96707.0,0.3608]
[1736869082936,0.16914845,96720.0,96707.0,0.3608]
[1736869083235,0.051711,96724.0,96717.0,0.051715]
[1736869083437,0.3843093,96726.0,96707.0,0.3608]
[1736869083642,0.002,96725.0,96719.0,0.7216]
[1736869083835,0.002,96725.0,96724.0,0.051711]
[1736869084635,0.00155166,96726.0,96725.0,0.05171]
[1736869084839,0.3608,96757.0,96726.0,0.05171]
[1736869085035,0.051697,96751.0,96750.0,0.051697]
[1736869085233,0.36160001,96757.0,96740.0,0.3608]
[1736869085435,0.36160001,96757.0,96748.0,0.3608]
[1736869085436,0.16914845,96750.0,96748.0,0.3608]
[1736869085630,0.412495,96755.0,96740.0,0.3608]
[1736869085839,0.3608,96746.0,96728.0,0.3608]
[1736869086045,0.051707,96732.0,96731.0,0.051707]
[1736869086244,0.16914845,96740.0,96728.0,0.3608]
[1736869086430,0.051712,96724.0,96719.0,0.3608]
[1736869086638,0.051712,96724.0,96723.0,0.051711]
[1736869086944,0.051713,96720.0,96719.0,0.3608]
[1736869087135,0.16914845,96730.0,96701.0,0.4646]
[1736869087136,0.3608,96721.0,96701.0,0.4118]
[1736869087340,0.3608,96721.0,96695.0,0.3608]
[1736869087341,0.16914845,96711.0,96695.0,0.3608]
[1736869087534,0.051722,96705.0,96696.0,0.051726]
[1736869087737,0.0494,96710.0,96695.0,0.3608]
[1736869088040,0.051723,96701.0,96700.0,0.051724]
[1736869088640,0.0494,96710.0,96695.0,0.3608]
[1736869088945,0.0494,96710.0,96701.0,0.051723]
[1736869088946,0.051724,96702.0,96701.0,0.051723]
[1736869089134,0.051726,96696.0,96695.0,0.412526]
[1736869089341,0.051726,96696.0,96695.0,0.3608]
[1736869090035,0.051728,96693.0,96692.0,0.00155119]
[1736869090438,0.051728,96693.0,96692.0,0.05327919]
[1736869090638,0.051728,96693.0,96692.0,0.00155119]
[1736869090838,0.412528,96693.0,96692.0,0.00155119]
[1736869091241,0.01020094,96696.0,96695.0,0.051726]
[1736869091446,0.051726,96697.0,96696.0,0.051726]
[1736869091742,0.102614,96718.0,96695.0,0.3608]
[1736869092045,0.051721,96705.0,96695.0,0.3628]
[1736869092241,0.051721,96705.0,96704.0,0.051722]
[1736869092431,0.24627229,96719.0,96718.0,0.051714]
[1736869092745,0.22085045,96740.0,96703.0,0.3608]
[1736869092746,0.00080001,96728.0,96724.0,0.051711]
[1736869093049,0.05326163,96725.0,96724.0,0.412511]
[1736869093438,0.00155163,96725.0,96724.0,0.412511]
[1736869093849,0.01055163,96725.0,96724.0,0.412511]
[1736869094447,0.06626163,96725.0,96724.0,0.412511]
[1736869094649,0.01455163,96725.0,96724.0,0.412511]
[1736869095143,0.013,96725.0,96724.0,0.412511]
[1736869095343,0.051698,96749.0,96724.0,0.3608]
[1736869095546,0.051698,96749.0,96748.0,0.051698]
[1736869096644,0.051702,96743.0,96739.0,0.3608]
[1736869096850,0.013,96749.0,96740.0,0.051702]
[1736869097346,0.067698,96749.0,96748.0,0.001]
[1736869098737,0.058698,96749.0,96748.0,0.001]
[1736869099049,0.14446871,96749.0,96747.0,0.412498]
[1736869099245,0.14546871,96749.0,96747.0,0.412498]
[1736869099448,0.15446871,96749.0,96748.0,0.001]
[1736869099844,0.062698,96749.0,96748.0,0.001]
[1736869100054,0.051701,96743.0,96738.0,0.051703]
[1736869100249,0.051702,96741.0,96738.0,0.051703]
[1736869100549,0.0517,96745.0,96741.0,0.051702]
[1736869100750,0.0517,96745.0,96744.0,0.4125]
[1736869100960,0.01,96749.0,96748.0,0.051698]
[1736869101150,0.01,96749.0,96748.0,0.412498]
[1736869101538,0.01,96749.0,96743.0,0.3608]
[1736869101742,0.01,96749.0,96747.0,0.051698]
[1736869102350,0.009,96749.0,96747.0,0.051698]
[1736869102744,0.051694,96756.0,96744.0,0.3608]
[1736869102943,0.051694,96756.0,96755.0,0.3608]
[1736869103344,0.010095,96759.0,96748.0,0.001]
[1736869103538,0.002,96749.0,96734.0,0.3608]
[1736869103739,0.051705,96735.0,96734.0,0.3608]
[1736869104347,0.05171,96725.0,96724.0,0.3608]
[1736869104943,0.01132937,96735.0,96724.0,0.3608]
[1736869105151,0.051707,96731.0,96729.0,0.051708]
[1736869105349,0.05171,96726.0,96724.0,0.3608]
[1736869105550,0.16914845,96740.0,96724.0,0.3608]
[1736869105741,0.051704,96737.0,96736.0,0.051705]
[1736869105946,0.3608,96743.0,96733.0,0.3608]
[1736869106148,0.051703,96740.0,96739.0,0.051703]
[1736869106357,0.051703,96740.0,96733.0,0.3608]
[1736869106358,0.051704,96737.0,96734.0,0.001]
[1736869106656,0.051703,96739.0,96737.0,0.051704]
[1736869107043,0.051703,96738.0,96737.0,0.051704]
[1736869107553,0.01039621,96743.0,96742.0,0.051701]
[1736869107759,0.051698,96748.0,96745.0,0.051699]
[1736869108257,0.051699,96747.0,96746.0,0.051699]
[1736869108553,0.051694,96756.0,96755.0,0.051693]
[1736869108855,0.001,96756.0,96742.0,0.3608]
[1736869109056,0.0517,96745.0,96744.0,0.0517]
[1736869109551,0.051701,96743.0,96742.0,0.3608]
[1736869110850,0.055701,96743.0,96742.0,0.3608]
[1736869111159,0.051704,96738.0,96733.0,0.3608]
[1736869111359,0.051705,96737.0,96736.0,0.051704]
[1736869111553,0.051706,96734.0,96733.0,0.3608]
[1736869111745,0.051706,96734.0,96725.0,0.3608]
[1736869112151,0.05171,96726.0,96725.0,0.41251]
[1736869112660,0.001,96738.0,96725.0,0.3608]
[1736869112855,0.051705,96736.0,96735.0,0.051704]
[1736869113061,0.051705,96735.0,96734.0,0.3608]
[1736869113452,0.051706,96734.0,96733.0,0.001]
[1736869113760,0.05171,96726.0,96725.0,0.007]
[1736869113949,0.05171,96726.0,96725.0,0.005]
[1736869114153,0.051709,96731.0,96725.0,0.005]
[1736869114356,0.051709,96731.0,96730.0,0.051707]
[1736869114661,0.05171,96726.0,96725.0,0.05171]
[1736869115255,0.3608,96728.0,96715.0,0.3608]
[1736869115453,0.051719,96709.0,96708.0,0.01016607]
[1736869115667,0.412515,96716.0,96705.0,0.3608]
[1736869115668,0.051721,96706.0,96705.0,0.3608]
[1736869115849,0.051723,96702.0,96689.0,0.3608]
[1736869116261,0.052723,96702.0,96689.0,0.3608]
[1736869116964,0.13637615,96702.0,96689.0,0.3608]
[1736869117158,0.051729,96690.0,96689.0,0.3608]
[1736869117550,0.051736,96677.0,96676.0,0.3608]
[1736869117750,0.001,96690.0,96665.0,0.3608]
[1736869117751,0.3608,96681.0,96665.0,0.3608]
[1736869117958,0.051739,96671.0,96655.0,0.3608]
[1736869118158,0.3608,96672.0,96654.0,0.00155179]
[1736869118159,0.051747,96656.0,96654.0,0.00155179]
[1736869118657,0.051757,96637.0,96636.0,0.25693184]
[1736869119162,0.051757,96637.0,96614.0,0.0501]
[1736869119163,0.052757,96637.0,96622.0,0.00052]
[1736869119358,0.051764,96624.0,96621.0,0.051766]
[1736869119664,0.048764,96624.0,96621.0,0.051766]
[1736869119967,0.048764,96624.0,96623.0,0.051765]
[1736869120352,0.051766,96622.0,96618.0,0.3608]
[1736869120558,0.051767,96620.0,96618.0,0.3608]
[1736869121360,0.051767,96620.0,96618.0,0.412568]
[1736869121855,0.001,96624.0,96621.0,0.051766]
[1736869122455,0.001,96624.0,96622.0,0.051765]
[1736869122761,0.001,96624.0,96618.0,0.3668]
[1736869122762,0.051766,96621.0,96618.0,0.3668]
[1736869122965,0.001,96620.0,96619.0,0.051767]
[1736869123474,0.001,96624.0,96622.0,0.051765]
[1736869124061,0.051765,96624.0,96622.0,0.051765]
[1736869124561,0.16914845,96630.0,96618.0,0.3608]
[1736869124762,0.051767,96619.0,96618.0,0.3608]
[1736869124956,0.046767,96619.0,96618.0,0.3608]
[1736869125761,0.045767,96619.0,96618.0,0.3658]
[1736869125963,0.001,96624.0,96622.0,0.051765]
[1736869126168,0.01030309,96643.0,96642.0,0.051755]
[1736869126462,0.01030309,96643.0,96642.0,0.3608]
[1736869126667,0.051754,96644.0,96642.0,0.3608]
[1736869127167,0.051747,96656.0,96647.0,0.051752]
[1736869127352,0.001,96657.0,96650.0,0.41255]
[1736869127552,0.05175,96652.0,96650.0,0.3608]
[1736869128155,0.3618,96651.0,96625.0,0.3608]
[1736869128360,0.051759,96635.0,96631.0,0.05176]
[1736869128559,0.36256,96651.0,96633.0,0.3608]
[1736869128765,0.051756,96641.0,96638.0,0.051757]
[1736869128963,0.051753,96647.0,96642.0,0.051755]
[1736869129265,0.051749,96654.0,96653.0,0.051749]
[1736869129463,0.0015527,96660.0,96658.0,0.051746]
[1736869130563,0.051725,96698.0,96658.0,0.051746]
[1736869130761,0.16914845,96700.0,96681.0,0.3608]
[1736869130958,0.051733,96684.0,96683.0,0.051733]
[1736869131258,0.051733,96682.0,96681.0,0.3608]
[1736869131667,0.051739,96671.0,96670.0,0.05174]
[1736869132357,0.051741,96668.0,96663.0,0.3608]
[1736869132559,0.051738,96674.0,96673.0,0.051737]
[1736869133464,0.37207306,96682.0,96663.0,0.3608]
[1736869133658,0.051742,96666.0,96664.0,0.051743]
[1736869133971,0.17614845,96674.0,96663.0,0.3608]
[1736869134153,0.007,96674.0,96673.0,0.3608]
[1736869134353,0.059738,96674.0,96673.0,0.412538]
[1736869134761,0.008,96674.0,96673.0,0.412538]
[1736869134954,0.013,96674.0,96663.0,0.3608]
[1736869135160,0.051743,96664.0,96663.0,0.3608]
[1736869136662,0.055743,96664.0,96663.0,0.3608]
[1736869137260,0.051743,96664.0,96663.0,0.3608]
[1736869137461,0.056743,96664.0,96663.0,0.3608]
[1736869137765,0.056743,96664.0,96653.0,0.051749]
[1736869138065,0.051748,96654.0,96653.0,0.051749]
[1736869138669,0.051752,96649.0,96648.0,0.051752]
[1736869138868,0.051753,96645.0,96644.0,0.00155197]
[1736869139074,0.051753,96645.0,96644.0,0.05330597]
[1736869139367,0.055743,96664.0,96658.0,0.051744]
[1736869139368,0.051746,96659.0,96658.0,0.051744]
[1736869139559,0.006,96664.0,96663.0,0.051744]
[1736869139760,0.52994845,96690.0,96658.0,0.3608]
[1736869139761,0.051735,96680.0,96664.0,0.051743]
[1736869139958,0.36156,96690.0,96679.0,0.3608]
[1736869140165,0.051731,96687.0,96686.0,0.05173]
[1736869140365,0.051733,96684.0,96679.0,0.3608]
[1736869140758,0.051734,96680.0,96679.0,0.3608]
[1736869141663,0.001,96680.0,96664.0,0.001]
[1736869141869,0.412542,96665.0,96664.0,0.001]
[1736869142168,0.413542,96665.0,96664.0,0.001]
[1736869142563,0.051752,96647.0,96646.0,0.3608]
[1736869144172,0.051752,96647.0,96646.0,0.412553]
[1736869144383,0.051752,96647.0,96646.0,0.413553]
[1736869144672,0.053752,96647.0,96630.0,0.3608]
[1736869144974,0.051761,96631.0,96630.0,0.3608]
[1736869145182,0.051765,96623.0,96622.0,0.3608]
[1736869145763,0.051757,96638.0,96627.0,0.051763]
[1736869145981,0.051762,96629.0,96627.0,0.051763]
[1736869146973,0.051759,96635.0,96634.0,0.051759]
[1736869147274,0.051759,96635.0,96634.0,0.3608]
[1736869147570,0.051759,96635.0,96634.0,0.412559]
[1736869147768,0.3608,96647.0,96634.0,0.3608]
[1736869148161,0.29500843,96654.0,96642.0,0.3608]
[1736869148463,0.051754,96644.0,96642.0,0.3608]
[1736869148662,0.051753,96646.0,96643.0,0.412554]
[1736869148864,0.051753,96645.0,96643.0,0.412554]
[1736869150168,0.001,96645.0,96635.0,0.0493]
[1736869150368,0.001,96645.0,96634.0,0.3608]
[1736869150369,0.051759,96635.0,96634.0,0.3608]
[1736869150672,0.051764,96625.0,96624.0,0.051764]
[1736869152473,0.01050852,96628.0,96624.0,0.002]
[1736869152675,0.051764,96625.0,96624.0,0.002]
[1736869152874,0.001,96627.0,96612.0,0.3608]
[1736869153074,0.05177,96613.0,96612.0,0.3608]
[1736869153274,0.051772,96611.0,96609.0,0.051772]
[1736869153875,0.051772,96611.0,96610.0,0.3608]
[1736869155879,0.052772,96611.0,96610.0,0.3658]
[1736869156268,0.051772,96611.0,96610.0,0.3658]
[1736869156470,0.052772,96611.0,96610.0,0.3658]
[1736869156667,0.001,96611.0,96610.0,0.417572]
[1736869156871,0.051771,96611.0,96610.0,0.417572]
[1736869157071,0.052771,96611.0,96610.0,0.410072]
[1736869157272,0.052771,96611.0,96610.0,0.3613]
[1736869158276,0.053771,96611.0,96610.0,0.3613]
[1736869158479,0.052771,96611.0,96610.0,0.3613]
[1736869158779,0.003,96611.0,96610.0,0.410072]
[1736869159083,0.002,96611.0,96610.0,0.410072]
[1736869160385,0.051771,96613.0,96612.0,0.051771]
[1736869160677,0.051771,96613.0,96610.0,0.3583]
[1736869160678,0.051771,96611.0,96610.0,0.3583]
[1736869160881,0.051771,96611.0,96600.0,0.1]
[1736869160882,0.051775,96604.0,96600.0,0.1]
[1736869161076,0.051771,96611.0,96585.0,0.3608]
[1736869161077,0.3608,96608.0,96585.0,0.3608]
[1736869161285,0.051785,96586.0,96585.0,0.3608]
[1736869161486,0.051789,96578.0,96577.0,0.3608]
[1736869161778,0.051797,96563.0,96562.0,0.24529228]
[1736869162180,0.001,96563.0,96558.0,0.3608]
[1736869162375,0.051786,96585.0,96583.0,0.051786]
[1736869162681,0.0517,96604.0,96581.0,0.36036374]
[1736869162881,0.051778,96598.0,96597.0,0.3608]
[1736869163071,0.051778,96599.0,96597.0,0.3608]
[1736869163574,0.051778,96599.0,96597.0,0.412579]
[1736869163770,0.01037706,96606.0,96597.0,0.3608]
[1736869163976,0.051775,96605.0,96604.0,0.051775]
[1736869164476,0.051778,96599.0,96597.0,0.3608]
[1736869164782,0.055778,96599.0,96597.0,0.3608]
[1736869164980,0.051785,96585.0,96584.0,0.051786]
[1736869165177,0.002,96598.0,96578.0,0.3608]
[1736869165379,0.051789,96579.0,96578.0,0.412589]
[1736869165779,0.051789,96579.0,96578.0,0.051789]
[1736869167885,0.051793,96570.0,96560.0,0.051798]
[1736869168085,0.051799,96563.0,96562.0,0.051797]
[1736869168281,0.16914845,96570.0,96558.0,0.05335227]
[1736869168282,0.051799,96559.0,96558.0,0.05335227]
[1736869168589,0.051798,96564.0,96563.0,0.051797]
[1736869169182,0.051794,96569.0,96568.0,0.051794]
[1736869169383,0.001,96570.0,96563.0,0.3608]
[1736869169579,0.051792,96573.0,96572.0,0.051792]
[1736869169781,0.3608,96584.0,96563.0,0.3608]
[1736869169979,0.05179,96577.0,96576.0,0.051789]
[1736869170285,0.051794,96570.0,96569.0,0.051794]
[1736869171190,0.051794,96570.0,96560.0,0.22224845]
[1736869171191,0.051798,96561.0,96560.0,0.053799]
[1736869171382,0.051787,96582.0,96569.0,0.051794]
[1736869171582,0.051797,96564.0,96563.0,0.053796]
[1736869171786,0.051797,96564.0,96563.0,0.002]
[1736869172089,0.051797,96564.0,96544.0,0.4119]
[1736869172090,0.052797,96564.0,96544.0,0.3608]
[1736869172286,0.051805,96550.0,96549.0,0.051804]
[1736869172587,0.051,96563.0,96544.0,0.3608]
[1736869172887,0.051807,96545.0,96544.0,0.3608]
[1736869173086,0.3608,96545.0,96521.0,0.00834805]
[1736869173288,0.051821,96519.0,96518.0,0.3608]
[1736869173494,0.16914845,96531.0,96506.0,0.3608]
[1736869173685,0.051823,96515.0,96514.0,0.3608]
[1736869174987,0.051823,96515.0,96514.0,0.3648]
[1736869175192,0.001,96530.0,96520.0,0.05182]
[1736869175389,0.001,96530.0,96522.0,0.3608]
[1736869175595,0.051818,96524.0,96522.0,0.3608]
[1736869175784,0.00945779,96532.0,96520.0,0.05182]
[1736869175979,0.051815,96529.0,96522.0,0.3608]
[1736869176184,0.16914845,96530.0,96522.0,0.3608]
[1736869176390,0.051819,96523.0,96522.0,0.3608]
[1736869177588,0.055819,96523.0,96522.0,0.3608]
[1736869178191,0.051819,96523.0,96522.0,0.3608]
[1736869178492,0.052819,96523.0,96522.0,0.3608]
[1736869178688,0.057819,96523.0,96522.0,0.3608]
[1736869179089,0.052819,96523.0,96522.0,0.3608]
[1736869179290,0.057819,96523.0,96522.0,0.3608]
[1736869179893,0.008,96523.0,96522.0,0.3608]
[1736869180198,0.059819,96523.0,96522.0,0.412619]
[1736869180498,0.009,96523.0,96514.0,0.3608]
[1736869180797,0.051823,96515.0,96514.0,0.3608]
[1736869181796,0.051826,96510.0,96509.0,0.051826]
[1736869181992,0.051829,96503.0,96502.0,0.3608]
[1736869182490,0.001,96503.0,96501.0,0.3608]
[1736869182694,0.05183,96502.0,96501.0,0.3608]
[1736869183297,0.05183,96503.0,96502.0,0.05183]
[1736869183693,0.05183,96502.0,96501.0,0.3608]
[1736869185303,0.05283,96502.0,96501.0,0.3608]
[1736869185698,0.05383,96502.0,96501.0,0.3608]
[1736869185901,0.05383,96502.0,96500.0,0.1]
[1736869186400,0.05383,96502.0,96492.0,0.3608]
[1736869186401,0.051835,96493.0,96492.0,0.3608]
[1736869186603,0.051841,96482.0,96481.0,0.3608]
[1736869186799,0.051843,96478.0,96476.0,0.051844]
[1736869187002,0.051843,96478.0,96477.0,0.051843]
[1736869187898,0.047843,96478.0,96477.0,0.051843]
[1736869189196,0.048843,96478.0,96477.0,0.051843]
[1736869189801,0.048843,96478.0,96477.0,0.053843]
[1736869190490,0.048843,96478.0,96477.0,0.051843]
[1736869190689,0.001,96478.0,96477.0,0.414643]
[1736869190891,0.051827,96507.0,96494.0,0.051834]
[1736869191093,0.00656055,96509.0,96508.0,0.051827]
[1736869191299,0.0015549,96520.0,96519.0,0.051821]
[1736869191490,0.0533749,96520.0,96519.0,0.412621]
[1736869191697,0.0533749,96520.0,96519.0,0.3608]
[1736869191890,0.0543749,96520.0,96519.0,0.3608]
[1736869192098,0.051827,96507.0,96506.0,0.3608]
[1736869192296,0.051827,96507.0,96506.0,0.412628]
[1736869192997,0.053827,96507.0,96506.0,0.412628]
[1736869193511,0.002,96507.0,96506.0,0.412628]
[1736869193707,0.051824,96513.0,96506.0,0.3608]
[1736869193900,0.004,96507.0,96506.0,0.412628]
[1736869194499,0.055827,96507.0,96506.0,0.412628]
[1736869195007,0.056827,96507.0,96495.0,0.0506]
[1736869195209,0.051833,96499.0,96498.0,0.051832]
[1736869195606,0.051837,96488.0,96487.0,0.00155445]
[1736869196903,0.05937772,96488.0,96487.0,0.00155445]
[1736869198007,0.06037772,96488.0,96487.0,0.00155445]
[1736869198515,0.05184,96484.0,96483.0,0.3608]
[1736869198904,0.05284,96484.0,96483.0,0.3608]
[1736869199811,0.05284,96484.0,96483.0,0.3618]
[1736869200307,0.05184,96484.0,96483.0,0.3618]
[1736869200507,0.001,96488.0,96487.0,0.051838]
[1736869201305,0.4119,96515.0,96506.0,0.051827]
[1736869201306,0.051825,96513.0,96506.0,0.051827]
[1736869201513,0.3608,96515.0,96486.0,0.3608]
[1736869201514,0.051831,96502.0,96501.0,0.05183]
[1736869201709,0.051831,96500.0,96499.0,0.3608]
[1736869202111,0.051831,96500.0,96499.0,0.412632]
[1736869203115,0.055831,96500.0,96499.0,0.412632]
[1736869203313,0.055831,96500.0,96499.0,0.3608]
[1736869203615,0.055831,96500.0,96486.0,0.3608]
[1736869203616,0.051838,96487.0,96486.0,0.3608]
[1736869204018,0.052838,96487.0,96486.0,0.3608]
[1736869204711,0.053838,96487.0,96486.0,0.3628]
[1736869205917,0.14569054,96487.0,96486.0,0.3628]
[1736869206307,0.09485254,96487.0,96469.0,0.3608]
[1736869206508,0.09485254,96487.0,96463.0,0.00155489]
[1736869206509,0.05185,96464.0,96463.0,0.00155489]
[1736869206716,0.051856,96454.0,96453.0,0.412656]
[1736869207310,0.051856,96454.0,96453.0,0.3608]
[1736869207720,0.3608,96458.0,96443.0,0.0536]
[1736869208026,0.3608,96458.0,96442.0,0.42085381]
[1736869208027,0.3608,96450.0,96442.0,0.00645381]
[1736869208321,0.3608,96450.0,96432.0,0.412668]
[1736869208322,0.051867,96433.0,96432.0,0.412668]
[1736869209018,0.051867,96433.0,96432.0,0.41934325]
[1736869209717,0.051863,96442.0,96441.0,0.051863]
[1736869209916,0.051863,96442.0,96441.0,0.412663]
[1736869210422,0.001,96458.0,96457.0,0.051854]
[1736869210626,0.001,96458.0,96457.0,0.412654]
[1736869210914,0.051858,96450.0,96446.0,0.05186]
[1736869211123,0.051858,96450.0,96449.0,0.051858]
[1736869211312,0.051858,96450.0,96449.0,0.412658]
[1736869211711,0.051855,96455.0,96449.0,0.3608]
[1736869212113,0.051849,96466.0,96465.0,0.05185]
[1736869212317,0.051847,96471.0,96470.0,0.051847]
[1736869212619,0.24606843,96480.0,96479.0,0.051842]
[1736869212816,0.24530843,96480.0,96479.0,0.412642]
[1736869213419,0.00076,96483.0,96479.0,0.412642]
[1736869213630,0.00155534,96490.0,96489.0,0.051837]
[1736869215033,0.00455534,96490.0,96489.0,0.051837]
[1736869215232,0.00755534,96490.0,96489.0,0.051837]
[1736869215428,0.00455534,96490.0,96489.0,0.051837]
[1736869215627,0.00555534,96490.0,96489.0,0.051837]
[1736869216936,0.00555534,96490.0,96488.0,0.3608]
[1736869217129,0.051837,96489.0,96488.0,0.3608]
[1736869217333,0.051837,96489.0,96488.0,0.412637]
[1736869218940,0.052837,96489.0,96488.0,0.412637]
[1736869219242,0.001,96489.0,96488.0,0.412637]
[1736869219538,0.051829,96504.0,96503.0,0.051829]
[1736869219735,0.00660774,96504.0,96503.0,0.051829]
[1736869219932,0.051826,96510.0,96509.0,0.051825]
[1736869220127,0.001,96504.0,96461.0,0.3608]
[1736869220331,0.051844,96476.0,96464.0,0.00660377]
[1736869220536,0.05184,96483.0,96475.0,0.3608]
[1736869220742,0.00080001,96488.0,96479.0,0.051842]